bitfinex-derivatives/quotes_BTCF0:USTF0_20241025
["timestamp","ask_amount","ask_price","bid_price","bid_amount"]
[1729898879895,0.075938,65932.0,65917.0,0.075954]
[1729898880096,0.075938,65932.0,65926.0,0.075944]
[1729898880404,0.0225587,65941.0,65930.0,0.3608]
[1729898880595,0.0217987,65941.0,65937.0,0.3608]
[1729898880797,0.15208085,65946.0,65937.0,0.3608]
[1729898881095,0.07593,65939.0,65937.0,0.3608]
[1729898881288,0.075937,65933.0,65931.0,0.183]
[1729898882090,0.3608,65938.0,65924.0,0.3608]
[1729898882091,0.075945,65926.0,65924.0,0.3608]
[1729898882698,0.15208085,65928.0,65917.0,0.436755]
[1729898882895,0.15208085,65928.0,65917.0,0.3608]
[1729898882896,0.3608,65922.0,65917.0,0.3608]
[1729898883104,0.075961,65912.0,65911.0,0.1833]
[1729898883598,0.075964,65909.0,65908.0,0.3608]
[1729898883799,0.075958,65915.0,65908.0,0.3608]
[1729898883990,0.51288085,65922.0,65914.0,0.3608]
[1729898883991,0.36168,65922.0,65914.0,0.3608]
[1729898884185,0.36168,65922.0,65908.0,0.3608]
[1729898884186,0.15208085,65921.0,65908.0,0.3608]
[1729898884496,0.15208085,65921.0,65895.0,0.3754]
[1729898884497,0.22804685,65908.0,65901.0,0.3608]
[1729898884696,0.3608,65912.0,65895.0,0.3608]
[1729898884697,0.3608,65905.0,65895.0,0.3608]
[1729898885087,0.075971,65904.0,65895.0,0.3608]
[1729898885292,0.15208085,65900.0,65895.0,0.3608]
[1729898885490,0.3608,65905.0,65895.0,0.3608]
[1729898885685,0.3608,65912.0,65902.0,0.3608]
[1729898885886,0.075962,65911.0,65902.0,0.3608]
[1729898886092,0.38331816,65912.0,65902.0,0.3608]
[1729898886296,0.38255816,65912.0,65905.0,0.075968]
[1729898886695,0.22804885,65906.0,65901.0,0.3608]
[1729898886890,0.02255816,65912.0,65901.0,0.3608]
[1729898887100,0.075961,65912.0,65901.0,0.3608]
[1729898887293,0.075964,65909.0,65896.0,0.075979]
[1729898887490,0.075964,65909.0,65895.0,0.3608]
[1729898887491,0.075955,65918.0,65906.0,0.075967]
[1729898887916,0.02234783,65918.0,65909.0,0.3608]
[1729898888103,0.3608,65925.0,65915.0,0.3608]
[1729898888600,0.075944,65927.0,65916.0,0.075956]
[1729898888796,0.075944,65927.0,65915.0,0.3608]
[1729898888797,0.075945,65926.0,65915.0,0.3608]
[1729898889105,0.3608,65938.0,65922.0,0.075949]
[1729898889307,0.15208085,65936.0,65921.0,0.3608]
[1729898889500,0.3608,65923.0,65908.0,0.3608]
[1729898889797,0.15208085,65916.0,65897.0,0.75592]
[1729898889999,0.075967,65907.0,65897.0,0.755]
[1729898890897,0.075951,65921.0,65904.0,0.3608]
[1729898891102,0.51288085,65923.0,65904.0,0.3608]
[1729898891103,0.075953,65919.0,65910.0,0.3608]
[1729898891399,0.075957,65916.0,65910.0,0.3608]
[1729898891608,0.07596,65913.0,65910.0,0.3608]
[1729898891794,0.15208085,65910.0,65886.0,0.3608]
[1729898891992,0.15208085,65897.0,65886.0,0.3608]
[1729898892188,0.07599,65887.0,65886.0,0.3608]
[1729898892397,0.075994,65883.0,65882.0,0.1939]
[1729898892900,0.531354,65883.0,65882.0,0.1939]
[1729898893105,0.075994,65883.0,65882.0,0.1939]
[1729898893398,0.075994,65883.0,65861.0,0.1939]
[1729898893399,0.076017,65863.0,65861.0,0.1939]
[1729898893900,0.15208085,65862.0,65861.0,0.1939]
[1729898894099,0.60756085,65862.0,65850.0,0.3608]
[1729898894397,0.15208085,65851.0,65848.0,0.1974]
[1729898894706,0.076038,65845.0,65844.0,0.3608]
[1729898894909,0.15208085,65847.0,65844.0,0.3608]
[1729898895195,0.3608,65852.0,65844.0,0.3608]
[1729898895595,0.15208085,65850.0,65844.0,0.3608]
[1729898895793,0.3608,65852.0,65844.0,0.3608]
[1729898895998,0.51364085,65859.0,65845.0,0.2014]
[1729898896191,0.15208085,65859.0,65855.0,0.076026]
[1729898896392,0.02221529,65868.0,65856.0,0.5492]
[1729898896393,0.15208085,65865.0,65856.0,0.5492]
[1729898896594,0.3608,65870.0,65865.0,0.076014]
[1729898896789,0.3608,65870.0,65859.0,0.076022]
[1729898897094,0.3608,65870.0,65860.0,0.07602]
[1729898897290,0.3608,65870.0,65856.0,0.55004]
[1729898897488,0.3608,65870.0,65862.0,0.076018]
[1729898897902,0.28814672,65970.0,65862.0,0.076018]
[1729898897903,0.51288085,65883.0,65869.0,0.3608]
[1729898898204,0.3608,65883.0,65869.0,0.3608]
[1729898898404,0.3608,65883.0,65878.0,0.076]
[1729898898596,0.15208085,65882.0,65875.0,0.3608]
[1729898898900,0.3608,65883.0,65870.0,0.2016]
[1729898898901,0.15208085,65875.0,65870.0,0.2016]
[1729898899095,0.15208085,65875.0,65856.0,0.5492]
[1729898899297,0.076024,65858.0,65856.0,0.1884]
[1729898899500,0.51288085,65860.0,65842.0,0.36168]
[1729898899804,0.15208085,65843.0,65831.0,0.3608]
[1729898900004,0.076061,65826.0,65820.0,0.3608]
[1729898900196,0.15208085,65822.0,65820.0,0.3608]
[1729898900398,0.3608,65837.0,65820.0,0.3608]
[1729898900399,0.15208085,65829.0,65820.0,0.3608]
[1729898900595,0.15208085,65829.0,65820.0,0.436866]
[1729898901100,0.15208085,65829.0,65820.0,0.3608]
[1729898901304,0.15208085,65830.0,65827.0,0.076058]
[1729898901801,0.15208085,65830.0,65826.0,0.3608]
[1729898902001,0.15208085,65830.0,65828.0,0.076057]
[1729898902204,0.3608,65837.0,65835.0,0.076049]
[1729898902402,0.15208085,65847.0,65836.0,0.1941]
[1729898902608,0.3608,65859.0,65841.0,0.3608]
[1729898902914,0.3608,65859.0,65847.0,0.3608]
[1729898903092,0.3608,65859.0,65854.0,0.076027]
[1729898903291,0.076011,65869.0,65856.0,0.436824]
[1729898903500,0.15208085,65873.0,65867.0,0.076012]
[1729898903896,0.15208085,65880.0,65872.0,0.3608]
[1729898904197,0.3608,65887.0,65872.0,0.3608]
[1729898904198,0.3801677,65873.0,65872.0,0.3608]
[1729898904907,0.076006,65873.0,65872.0,0.3608]
[1729898905404,0.3801677,65873.0,65872.0,0.3608]
[1729898905799,0.076028,65854.0,65848.0,0.076034]
[1729898905995,0.076027,65855.0,65853.0,0.3608]
[1729898906201,0.07602,65861.0,65853.0,0.3608]
[1729898906500,0.07602,65861.0,65860.0,0.3608]
[1729898906705,0.076018,65862.0,65860.0,0.3608]
[1729898907507,0.15208085,65869.0,65860.0,0.3608]
[1729898907700,0.076011,65869.0,65866.0,0.3608]
[1729898907900,0.076012,65868.0,65866.0,0.3608]
[1729898908104,0.15208085,65878.0,65871.0,0.076008]
[1729898908305,0.51380085,65881.0,65875.0,0.3608]
[1729898908507,0.076001,65877.0,65875.0,0.3608]
[1729898909308,0.51288085,65889.0,65875.0,0.3608]
[1729898909508,0.075997,65881.0,65875.0,0.3608]
[1729898909703,0.075991,65886.0,65875.0,0.3608]
[1729898909902,0.075992,65885.0,65881.0,0.3608]
[1729898910418,0.51380085,65889.0,65885.0,0.075991]
[1729898910419,0.00092,65889.0,65885.0,0.075991]
[1729898910710,0.15208085,65901.0,65881.0,0.3608]
[1729898910711,0.1036282,65901.0,65892.0,0.075984]
[1729898911006,0.075974,65901.0,65897.0,0.7216]
[1729898911211,0.075968,65906.0,65897.0,0.7216]
[1729898911522,0.02684269,65908.0,65905.0,0.3608]
[1729898911703,0.075961,65912.0,65905.0,0.436768]
[1729898912008,0.075961,65912.0,65906.0,0.075967]
[1729898912314,0.00092,65923.0,65911.0,0.3608]
[1729898912505,0.3608,65928.0,65912.0,0.2016]
[1729898912816,0.075947,65924.0,65922.0,0.3608]
[1729898913006,0.02673865,65928.0,65922.0,0.3608]
[1729898913311,0.00092,65928.0,65922.0,0.3608]
[1729898913508,0.3608,65936.0,65922.0,0.3608]
[1729898913709,0.15208085,65936.0,65928.0,0.3608]
[1729898913917,0.075941,65930.0,65928.0,0.3608]
[1729898914210,0.075933,65936.0,65929.0,0.07594]
[1729898914400,0.075929,65940.0,65935.0,0.3608]
[1729898915002,0.15208085,65946.0,65935.0,0.3608]
[1729898915403,0.075928,65941.0,65935.0,0.3608]
[1729898916205,0.3608,65957.0,65944.0,0.075923]
[1729898916408,0.15208085,65960.0,65943.0,0.3608]
[1729898916409,0.075918,65949.0,65943.0,0.3608]
[1729898916805,0.026867,65957.0,65943.0,0.436725]
[1729898917005,0.075903,65963.0,65955.0,0.3608]
[1729898917204,0.3608,65965.0,65956.0,0.075909]
[1729898917205,0.075903,65962.0,65956.0,0.075909]
[1729898917403,0.3608,65965.0,65956.0,0.075909]
[1729898917707,0.3608,65965.0,65955.0,0.3608]
[1729898917708,0.3608,65973.0,65961.0,0.3608]
[1729898917919,0.15208085,65980.0,65970.0,0.3608]
[1729898918104,0.15208085,65976.0,65970.0,0.3608]
[1729898918304,0.075893,65971.0,65970.0,0.3608]
[1729898918714,0.02776676,65981.0,65970.0,0.3608]
[1729898918904,0.15208085,65970.0,65961.0,0.00076]
[1729898919209,0.3608,65967.0,65953.0,0.3608]
[1729898919510,0.07591,65956.0,65953.0,0.3608]
[1729898919709,0.075911,65956.0,65953.0,0.3608]
[1729898919909,0.15208085,65962.0,65953.0,0.3608]
[1729898920117,0.075911,65955.0,65953.0,0.3608]
[1729898921119,0.075916,65951.0,65945.0,0.3608]
[1729898922612,0.15208085,65969.0,65950.0,1.01708]
[1729898922818,0.15208085,65969.0,65959.0,0.3608]
[1729898923208,0.15208085,65969.0,65950.0,0.638117]
[1729898923209,0.15208085,65962.0,65950.0,0.5622]
[1729898923409,0.075915,65952.0,65950.0,0.5622]
[1729898924411,0.15208085,65969.0,65950.0,0.5622]
[1729898924619,0.15208085,65969.0,65958.0,0.3608]
[1729898924919,0.0759,65965.0,65958.0,0.3608]
[1729898925113,0.02708492,65969.0,65964.0,0.3608]
[1729898925312,0.3608,65973.0,65964.0,0.3608]
[1729898925515,0.075898,65967.0,65964.0,0.3608]
[1729898925910,0.3608,65985.0,65964.0,0.3608]
[1729898925911,0.075892,65972.0,65964.0,0.3608]
[1729898926320,0.02770844,65978.0,65975.0,0.075887]
[1729898926512,0.07588,65982.0,65977.0,0.3608]
[1729898926813,0.075881,65981.0,65977.0,0.3608]
[1729898927017,0.38820762,65991.0,65977.0,0.3608]
[1729898927218,0.075869,65992.0,65983.0,0.3608]
[1729898927425,0.075868,65993.0,65991.0,0.3608]
[1729898927640,0.15208085,66002.0,65991.0,0.3608]
[1729898927641,0.075863,65997.0,65991.0,0.3608]
[1729898927819,0.075865,65995.0,65991.0,0.3608]
[1729898928013,0.075868,65993.0,65991.0,0.3608]
[1729898928222,0.02789714,66000.0,65991.0,0.3608]
[1729898928720,0.02789714,66000.0,65994.0,0.075866]
[1729898928912,0.3608,66012.0,65998.0,0.3608]
[1729898929118,0.15208085,66003.0,65998.0,0.3608]
[1729898929421,0.07586,66000.0,65998.0,0.3608]
[1729898929620,0.15208085,66003.0,65985.0,0.3608]
[1729898929819,0.075869,65992.0,65985.0,0.3608]
[1729898930024,0.15208085,66003.0,65985.0,0.3608]
[1729898930327,0.075868,65993.0,65988.0,0.075873]
[1729898930815,0.15208085,66003.0,65991.0,0.3608]
[1729898931225,0.075865,65995.0,65991.0,0.43667]
[1729898931918,0.075867,65994.0,65991.0,0.3608]
[1729898932120,0.075865,65996.0,65991.0,0.3608]
[1729898932320,0.075867,65994.0,65991.0,0.3608]
[1729898932627,0.436669,65992.0,65986.0,0.075875]
[1729898932822,0.075873,65989.0,65986.0,0.075875]
[1729898933216,0.3608,65992.0,65990.0,0.075871]
[1729898934024,0.3608,65992.0,65991.0,0.07587]
[1729898935512,0.3608,65993.0,65991.0,0.4546]
[1729898935719,0.3608,66006.0,65994.0,0.075866]
[1729898935720,0.075862,65999.0,65994.0,0.075866]
[1729898936328,0.075862,65999.0,65988.0,0.3608]
[1729898936518,0.075862,65999.0,65996.0,0.075864]
[1729898936925,0.3608,66006.0,65998.0,0.3041617]
[1729898937124,0.075856,66003.0,65995.0,0.3608]
[1729898937527,0.075856,66003.0,66000.0,0.075859]
[1729898937926,0.075856,66003.0,66001.0,0.075858]
[1729898938122,0.38761878,66006.0,65995.0,0.3608]
[1729898938327,0.075854,66005.0,65998.0,0.3041617]
[1729898938516,0.38853878,66006.0,66005.0,0.075854]
[1729898938716,0.38761878,66006.0,66005.0,0.075854]
[1729898939219,0.3608,66012.0,66011.0,0.075847]
[1729898939418,0.075841,66016.0,66004.0,0.3041617]
[1729898939619,0.3608,66019.0,66001.0,0.3608]
[1729898939620,0.075839,66018.0,66015.0,0.075841]
[1729898940023,0.3608,66019.0,66010.0,0.3041617]
[1729898940225,0.3608,66019.0,66018.0,0.075839]
[1729898940832,0.3608,66019.0,66015.0,0.3041617]
[1729898940833,0.10284266,66025.0,66020.0,0.075836]
[1729898941026,0.3608,66026.0,66022.0,0.3041617]
[1729898941330,0.075836,66021.0,66018.0,0.23836]
[1729898941725,0.075836,66021.0,66019.0,0.4544]
[1729898942130,0.10420138,66026.0,66023.0,0.075833]
[1729898942328,0.075817,66038.0,66023.0,0.075833]
[1729898942531,0.075826,66029.0,66026.0,0.07583]
[1729898942719,0.075824,66031.0,66030.0,0.075824]
[1729898942921,0.38831992,66039.0,66029.0,0.075826]
[1729898943136,0.00184,66045.0,66035.0,0.15208085]
[1729898943437,0.075815,66039.0,66035.0,0.15208085]
[1729898943726,0.075815,66039.0,66031.0,0.3608]
[1729898943928,0.075815,66039.0,66037.0,0.075816]
[1729898944427,0.3608,66046.0,66031.0,0.3608]
[1729898944428,0.075817,66037.0,66031.0,0.3608]
[1729898944629,0.3608,66046.0,66031.0,0.3608]
[1729898944830,0.15208085,66052.0,66022.0,0.3608]
[1729898944831,0.075821,66034.0,66028.0,0.23832]
[1729898945029,0.3608,66045.0,66033.0,0.075822]
[1729898945238,0.07582,66035.0,66033.0,0.075822]
[1729898945433,0.07582,66035.0,66028.0,0.39040085]
[1729898945434,0.075825,66031.0,66028.0,0.075827]
[1729898945628,0.075829,66027.0,66024.0,0.075831]
[1729898945824,0.075833,66023.0,66022.0,0.00076]
[1729898946131,0.075833,66023.0,66007.0,0.3608]
[1729898946132,0.075842,66015.0,66007.0,0.3608]
[1729898946325,0.075858,66001.0,66000.0,0.3608]
[1729898946527,0.075849,66009.0,66000.0,0.51288085]
[1729898946729,0.388386,66015.0,66005.0,0.15208085]
[1729898946933,0.388386,66015.0,66000.0,0.36156]
[1729898947130,0.075847,66011.0,66001.0,0.075858]
[1729898947335,0.388386,66015.0,66000.0,0.3608]
[1729898947734,0.388386,66015.0,66004.0,0.075854]
[1729898947943,0.075855,66004.0,66000.0,0.436659]
[1729898948241,0.075851,66007.0,66005.0,0.075853]
[1729898948536,0.3608,66030.0,66006.0,0.51288085]
[1729898948836,0.075838,66019.0,66016.0,0.07584]
[1729898949030,0.3608,66024.0,66011.0,0.15208085]
[1729898949230,0.436632,66024.0,66017.0,0.07584]
[1729898949439,0.46387881,66030.0,66024.0,0.075831]
[1729898949634,0.46387881,66030.0,66026.0,0.075829]
[1729898950038,0.38805281,66030.0,66026.0,0.075829]
[1729898950240,0.075837,66020.0,66017.0,0.07584]
[1729898950535,0.38805281,66030.0,66012.0,0.3608]
[1729898950740,0.075839,66018.0,66014.0,0.075843]
[1729898950942,0.075839,66018.0,66015.0,0.075842]
[1729898951136,0.3608,66024.0,66012.0,0.3608]
[1729898951338,0.3608,66017.0,66010.0,0.075848]
[1729898951543,0.3608,66017.0,66012.0,0.075845]
[1729898951740,0.3608,66017.0,66016.0,0.075841]
[1729898952040,0.3608,66017.0,66012.0,0.3041617]
[1729898952041,0.075843,66015.0,66012.0,0.075845]
[1729898952337,0.3608,66017.0,66016.0,0.075841]
[1729898952539,0.3608,66017.0,66011.0,0.075847]
[1729898952840,0.3608,66017.0,66006.0,0.6649617]
[1729898952841,0.075846,66012.0,66009.0,0.075849]
[1729898953037,0.075848,66010.0,66006.0,0.3608]
[1729898953241,0.075851,66007.0,66006.0,0.3608]
[1729898953547,0.075862,65998.0,65983.0,0.3608]
[1729898953846,0.075878,65985.0,65983.0,0.3608]
[1729898954032,0.3608,66003.0,65975.0,0.075888]
[1729898954033,0.075879,65983.0,65975.0,0.075888]
[1729898954232,0.3608,65986.0,65975.0,0.075888]
[1729898955347,0.3608,65986.0,65970.0,0.55236]
[1729898955547,0.3608,65986.0,65976.0,0.075887]
[1729898955732,0.436661,65999.0,65979.0,0.3041617]
[1729898955936,0.51288085,65998.0,65985.0,0.3608]
[1729898956138,0.3608,65986.0,65981.0,0.075881]
[1729898956339,0.3608,65992.0,65981.0,0.075881]
[1729898956635,0.15208085,65999.0,65977.0,0.3608]
[1729898956636,0.10281089,65999.0,65987.0,0.075874]
[1729898956848,0.3608,66003.0,65987.0,0.075874]
[1729898956849,0.3608,65996.0,65987.0,0.075874]
[1729898957534,0.3608,65996.0,65988.0,0.075873]
[1729898957738,0.3608,65996.0,65989.0,0.075872]
[1729898957935,0.38948946,66003.0,65989.0,0.075872]
[1729898958143,0.3608,66003.0,65988.0,0.3041617]
[1729898958445,0.3608,66003.0,65997.0,0.075862]
[1729898958749,0.38765101,66003.0,65993.0,0.075867]
[1729898958943,0.38765101,66003.0,65989.0,0.3608]
[1729898958944,0.3608,66003.0,65989.0,0.3608]
[1729898959140,0.3608,66003.0,65996.0,0.075863]
[1729898959341,0.3608,66003.0,65977.0,0.12077409]
[1729898959342,0.075871,65990.0,65974.0,0.07816228]
[1729898959646,0.075871,65990.0,65967.0,0.42065212]
[1729898959647,0.51288085,65981.0,65975.0,0.3608]
[1729898959848,0.3608,65981.0,65975.0,0.36018499]
[1729898960240,0.075886,65977.0,65969.0,0.075894]
[1729898960647,0.3608,65981.0,65971.0,0.075892]
[1729898960835,0.3608,65981.0,65968.0,0.3608]
[1729898961036,0.3608,65987.0,65968.0,0.3608]
[1729898961243,0.075881,65982.0,65974.0,0.075889]
[1729898961442,0.3608,65987.0,65968.0,0.3608]
[1729898961646,0.38868973,65987.0,65976.0,0.3608]
[1729898962146,0.02788973,65987.0,65986.0,0.3608]
[1729898962359,0.3608,65996.0,65989.0,0.075872]
[1729898962641,0.3608,65996.0,65986.0,0.6649617]
[1729898963048,0.075855,66004.0,65986.0,0.6649617]
[1729898963238,0.075855,66004.0,65995.0,0.075865]
[1729898963440,0.3608,66003.0,65995.0,0.075865]
[1729898963951,0.02730237,66009.0,65997.0,0.075863]
[1729898964149,0.02730237,66009.0,65992.0,0.3608]
[1729898964150,0.3608,65998.0,65992.0,0.3608]
[1729898964449,0.3608,65998.0,65991.0,0.075869]
[1729898964450,0.3608,65993.0,65972.0,0.59916]
[1729898964653,0.07587,65992.0,65974.0,0.075889]
[1729898964858,0.3608,65986.0,65972.0,0.59992]
[1729898965044,0.3608,65987.0,65979.0,0.075883]
[1729898965244,0.3608,65987.0,65972.0,0.59916]
[1729898965641,0.3608,65987.0,65972.0,0.3608]
[1729898965642,0.075886,65977.0,65972.0,0.3608]
[1729898965846,0.3608,65981.0,65972.0,0.3608]
[1729898965847,0.07589,65974.0,65972.0,0.3608]
[1729898966050,0.07589,65974.0,65972.0,0.35609551]
[1729898966452,0.07589,65974.0,65972.0,0.35130808]
[1729898966654,0.075901,65964.0,65960.0,0.075905]
[1729898967454,0.3608,65968.0,65957.0,0.3608]
[1729898967650,0.436696,65968.0,65962.0,0.075902]
[1729898967957,0.3608,65968.0,65962.0,0.075902]
[1729898968559,0.38834897,65968.0,65962.0,0.075902]
[1729898968858,0.38834897,65968.0,65957.0,0.436708]
[1729898969157,0.075904,65962.0,65957.0,0.436708]
[1729898969348,0.15208085,65966.0,65957.0,0.3608]
[1729898969654,0.15208085,65966.0,65951.0,0.075915]
[1729898969655,0.3608,65958.0,65951.0,0.075915]
[1729898969845,0.3608,65958.0,65950.0,0.3608]
[1729898970254,0.3608,65958.0,65950.0,0.436717]
[1729898970255,0.075913,65954.0,65950.0,0.436717]
[1729898970755,0.075909,65957.0,65954.0,0.075912]
[1729898970957,0.075912,65955.0,65950.0,0.3608]
[1729898971145,0.38926897,65968.0,65950.0,0.3608]
[1729898971146,0.075913,65954.0,65950.0,0.3608]
[1729898971455,0.075908,65958.0,65952.0,0.07818803]
[1729898971755,0.3608,65960.0,65956.0,0.07591]
[1729898971958,0.3608,65960.0,65952.0,0.00227403]
[1729898972156,0.38938898,65968.0,65962.0,0.075902]
[1729898972157,0.075898,65967.0,65962.0,0.075902]
[1729898972343,0.02754897,65968.0,65962.0,0.075903]
[1729898972545,0.0759,65965.0,65957.0,0.3608]
[1729898973457,0.0759,65965.0,65960.0,0.075905]
[1729898973657,0.075901,65964.0,65960.0,0.075905]
[1729898973862,0.075901,65964.0,65957.0,0.3608]
[1729898973863,0.075911,65955.0,65953.0,0.36156]
[1729898974156,0.075911,65955.0,65952.0,0.00227403]
[1729898974363,0.3608,65960.0,65952.0,0.00227403]
[1729898974558,0.02762504,65965.0,65952.0,0.30643573]
[1729898974756,0.3608,65968.0,65952.0,0.30643573]
[1729898974948,0.075911,65955.0,65952.0,0.00227403]
[1729898975647,0.3608,65962.0,65944.0,0.075923]
[1729898975648,0.15208085,65961.0,65944.0,0.075923]
[1729898975859,0.075914,65953.0,65948.0,0.075919]
[1729898976555,0.15208085,65967.0,65942.0,0.3608]
[1729898976556,0.075907,65959.0,65945.0,0.3041617]
[1729898976763,0.075892,65972.0,65949.0,0.075917]
[1729898976959,0.3608,65963.0,65948.0,0.3608]
[1729898977158,0.3608,65963.0,65955.0,0.075911]
[1729898977362,0.075904,65961.0,65956.0,0.07591]
[1729898977549,0.3608,65963.0,65952.0,0.3800757]
[1729898977856,0.3608,65963.0,65948.0,0.3608]
[1729898978061,0.075915,65952.0,65948.0,0.3608]
[1729898978264,0.3608,65954.0,65948.0,0.3608]
[1729898978453,0.075918,65949.0,65948.0,0.3608]
[1729898978956,0.075912,65954.0,65949.0,0.075917]
[1729898979157,0.075915,65952.0,65949.0,0.075917]
[1729898979462,0.075915,65952.0,65948.0,0.3608]
[1729898979663,0.075916,65951.0,65948.0,0.3608]
[1729898980156,0.075917,65950.0,65946.0,0.436721]
[1729898980358,0.07592,65947.0,65946.0,0.3608]
[1729898981149,0.3608,65956.0,65946.0,0.81572]
[1729898981351,0.3608,65969.0,65946.0,0.81572]
[1729898981352,0.075913,65953.0,65951.0,0.075915]
[1729898981954,0.3608,65963.0,65951.0,0.075915]
[1729898982159,0.15208085,65961.0,65946.0,0.3608]
[1729898982468,0.09846639,65961.0,65946.0,0.3608]
[1729898982767,0.3608,65963.0,65946.0,0.63365378]
[1729898983059,0.3608,65955.0,65946.0,0.63365378]
[1729898983263,0.38789545,65963.0,65953.0,0.075913]
[1729898983453,0.3608,65957.0,65949.0,0.075918]
[1729898983653,0.3608,65957.0,65946.0,0.3608]
[1729898983654,0.07592,65947.0,65946.0,0.3608]
[1729898983850,0.3608,65957.0,65948.0,0.075918]
[1729898984657,0.3608,65957.0,65946.0,0.3608]
[1729898984856,0.3608,65957.0,65938.0,0.3608]
[1729898984857,0.09846639,65955.0,65938.0,0.3608]
[1729898985059,0.075918,65949.0,65945.0,0.075922]
[1729898985862,0.09846639,65945.0,65916.0,0.3608]
[1729898986057,0.82006639,65946.0,65916.0,0.3608]
[1729898986058,0.075953,65919.0,65916.0,0.3608]
[1729898986258,0.3608,65926.0,65916.0,0.3608]
[1729898986259,0.075946,65925.0,65916.0,0.3608]
[1729898986458,0.075946,65925.0,65916.0,0.40606585]
[1729898986657,0.3608,65926.0,65916.0,0.3608]
[1729898986965,0.075951,65920.0,65916.0,0.3608]
[1729898987267,0.075967,65907.0,65905.0,0.00076]
[1729898987564,0.075967,65907.0,65904.0,0.3608]
[1729898987765,0.075967,65907.0,65902.0,0.3608]
[1729898988062,0.075967,65907.0,65893.0,0.60812]
[1729898988063,0.075967,65907.0,65895.0,0.30372506]
[1729898988560,0.075967,65907.0,65897.0,0.075977]
[1729898989662,0.3608,65913.0,65893.0,0.3608]
[1729898989663,0.02772895,65909.0,65893.0,0.3608]
[1729898989961,0.07598,65896.0,65893.0,0.3608]
[1729898990761,0.075981,65895.0,65887.0,0.3608]
[1729898991757,0.075983,65893.0,65887.0,0.3608]
[1729898992262,0.075987,65890.0,65887.0,0.3608]
[1729898992865,0.075994,65883.0,65881.0,0.3608]
[1729898993171,0.15186253,65887.0,65874.0,0.3608]
[1729898993360,0.15186253,65881.0,65874.0,0.3608]
[1729898993564,0.076003,65875.0,65874.0,0.3608]
[1729898994264,0.436794,65884.0,65874.0,0.3608]
[1729898994657,0.075994,65884.0,65874.0,0.3608]
[1729898995259,0.0279232,65887.0,65874.0,0.3608]
[1729898995260,0.17978573,65887.0,65874.0,0.3608]
[1729898995458,0.15186253,65887.0,65874.0,0.3608]
[1729898995659,0.3608,65883.0,65874.0,0.3608]
[1729898995958,0.075999,65879.0,65874.0,0.3608]
[1729898996967,0.3608,65883.0,65874.0,0.3608]
[1729898997165,0.075994,65882.0,65874.0,0.3608]
[1729898997465,0.3608,65883.0,65874.0,0.3608]
[1729898997466,0.075998,65879.0,65874.0,0.3608]
[1729898997964,0.3608,65883.0,65874.0,0.3608]
[1729898998170,0.076002,65876.0,65874.0,0.3608]
[1729898998468,0.076002,65876.0,65862.0,0.3608]
[1729898998469,0.51266253,65875.0,65862.0,0.3608]
[1729898998668,0.076016,65864.0,65862.0,0.3608]
[1729898998969,0.07602,65860.0,65858.0,0.3608]
[1729898999158,0.3608,65869.0,65858.0,0.3608]
[1729898999364,0.07601,65869.0,65858.0,0.3608]
[1729898999668,0.076006,65872.0,65864.0,0.3608]
[1729898999872,0.0275246,65874.0,65864.0,0.436815]
[1729899000172,0.3608,65874.0,65864.0,0.3608]
[1729899000562,0.07602,65860.0,65848.0,0.3608]
[1729899000759,0.07602,65860.0,65850.0,0.076031]
[1729899000969,0.07602,65860.0,65855.0,0.3608]
[1729899001273,0.076024,65857.0,65848.0,0.3608]
[1729899001461,0.076032,65850.0,65841.0,0.3608]
[1729899001664,0.15186253,65858.0,65841.0,0.3608]
[1729899001976,0.07605,65834.0,65832.0,0.00076]
[1729899002160,0.15186253,65844.0,65828.0,0.3608]
[1729899002360,0.076055,65830.0,65828.0,0.3608]
[1729899002876,0.45572,65830.0,65823.0,0.3608]
[1729899003061,0.15186253,65830.0,65815.0,0.3608]
[1729899003368,0.51266253,65831.0,65829.0,0.3608]
[1729899003369,0.00092,65831.0,65829.0,0.3608]
[1729899003766,0.3608,65848.0,65829.0,0.3608]
[1729899003767,0.02786295,65847.0,65829.0,0.3608]
[1729899003979,0.07602,65860.0,65846.0,0.3608]
[1729899004160,0.3608,65861.0,65849.0,0.30372506]
[1729899004366,0.02713743,65866.0,65852.0,0.3608]
[1729899004562,0.076005,65873.0,65859.0,0.3608]
[1729899004886,0.076007,65871.0,65859.0,0.3608]
[1729899005563,0.07601,65869.0,65859.0,0.3608]
[1729899005770,0.3608,65874.0,65859.0,0.3608]
[1729899005971,0.07602,65860.0,65852.0,0.3608]
[1729899006170,0.3608,65853.0,65843.0,0.3608]
[1729899006369,0.3608,65853.0,65837.0,0.3608]
[1729899006370,0.15186253,65843.0,65837.0,0.3608]
[1729899006669,0.15186253,65843.0,65821.0,0.3608]
[1729899006670,0.076061,65824.0,65821.0,0.3608]
[1729899006871,0.076061,65824.0,65813.0,0.3608]
[1729899006872,0.3608,65824.0,65813.0,0.3608]
[1729899007669,0.076068,65819.0,65813.0,0.3608]
[1729899007871,0.3608,65824.0,65813.0,0.3608]
[1729899008176,0.15186253,65813.0,65806.0,0.3608]
[1729899008377,0.15186253,65807.0,65806.0,0.3608]
[1729899008677,0.15186253,65807.0,65783.0,0.3608]
[1729899008979,0.076099,65792.0,65783.0,0.3608]
[1729899009364,0.07609,65800.0,65790.0,0.3608]
[1729899009566,0.07609,65800.0,65796.0,0.3608]
[1729899009779,0.02726849,65812.0,65796.0,0.3608]
[1729899009780,0.07608,65808.0,65796.0,0.3608]
[1729899009976,0.076081,65807.0,65796.0,0.3608]
[1729899010169,0.15186253,65801.0,65796.0,0.3608]
[1729899010477,0.076107,65785.0,65777.0,0.3608]